Cogmind - Beta 13 @@@ ROGUE MODE // 2024.04.28 @ 21:05:18 Player: RD-BNK(r) Result: Destroyed by Svarog with Nova Cannon Performance ------------- Evolutions (6) 3000 Regions Visited (23) 4600 Robots Destroyed (125) 625 Value Destroyed (3956) 3956 Prototype IDs (243) 4860 Alien Tech Used (3) 600 Bonus (4881) 4881 TOTAL SCORE: 22522 Bonus ------- High Alert Combat Kills 174 Follower Combat Kills 905 Network Hubs Disabled 200 Aligned with FarCom 300 Met Data Miner 300 Used Data Conduit 3000 Met Imprinter 300 Met Zhirov 300 Built Enhanced Grunts 300 Friendly Fire -898 Cogmind --------- Core Integrity 0/1150 Matter 210/300 Energy 295/295 System Corruption 4% Temperature Cool (9) Movement Hovering (40) Location -4/Zhirov Parts ------- > --- POWER (1) -------- Fusion Reactor > --- PROPULSION (6) --- Antigrav System Cooled Gravmag System Cooled Gravmag System Cooled Gravmag System Improved Gyrokinetic Inverter > --- UTILITY (10) ----- Improved Signal Interpreter Advanced Melee Analysis Suite Advanced Melee Analysis Suite Core Analyzer Advanced Reaction Control System Makeshift Hacking Suite Improved System Restoration Module > --- WEAPON (2) ------- Lance > --- INVENTORY (5) ---- Light Nuclear Core VTOL Module Experimental Terrain Scan Processor Peak State ------------ > --- POWER ------------ Light Angular Momentum Engine > --- PROPULSION ------- Antigrav Array Improved VTOL Module Impulse Thruster > --- UTILITY ---------- Enhanced Optical Array Advanced Melee Analysis Suite Advanced Melee Analysis Suite Advanced Melee Analysis Suite Core Analyzer Improved Light Armor Plating System Mapper Improved System Shield Improved System Guard Trap Reconfigurator > --- WEAPON ----------- Chainsword Lance > --- INVENTORY -------- Improved Fusion Compressor Light Particle Reactor Improved System Restoration Module Advanced Plasma Cannon Chainsword [Rating: 102] Favorites ----------- Power Light Ion Engine Engine Light Ion Engine Power Core Fission Core Reactor Fusion Reactor Propulsion Improved VTOL Module Treads Light Treads Leg Aluminum Leg Wheel Compact Wheel Hover Unit Improved Gyrokinetic Inverter Flight Unit Improved VTOL Module Utility Improved Melee Analysis Suite Device Structural Scanner Storage Medium Storage Unit Processor Improved Melee Analysis Suite Hackware System Mapper Protection Light Armor Plating Weapon Heavy Assault Rifle Energy Gun Precision Shock Rifle Energy Cannon Advanced Plasma Cannon Ballistic Gun Heavy Assault Rifle Launcher Rocket Launcher Special Weapon Mining Laser Slashing Weapon Katana Piercing Weapon Lance Build | -11 -10 -10 -10 -9 -8 -7 -7 -7 -7 -6 -6 -6 -6 -5 -5 -5 -5 -5 -5 -4 -4 -4 -4 ------- Run | Yrd Mat Min Exi Min Mat Fac Low Low Dat Pro Fac Low Zio Pro Fac Ext Cet Arc Hub Fac Upp Upp Zhi Slots Evolved 12 | . . . . . 4 2 . . . . 2 . . . 2 . . . . 2 . . . Power . | . . . . . . . . . . . . . . . . . . . . . . . . Propulsion 4 | . . . . . 2 1 . . . . . . . . . . . . . 1 . . . Utility 8 | . . . . . 2 1 . . . . 2 . . . 2 . . . . 1 . . . Weapon . | . . . . . . . . . . . . . . . . . . . . . . . . Parts Attached 158 | 4 5 . . 5 40 17 2 1 2 3 8 . 5 . 11 13 . 2 6 19 1 8 6 Power 18 | . . . . 2 1 2 . . . . 1 . . . 1 5 . . 1 2 . 2 1 Engine 11 | . . . . 2 1 1 . . . . 1 . . . 1 3 . . 1 1 . . . Core 5 | . . . . . . 1 . . . . . . . . . 2 . . . . . 2 . Reactor 2 | . . . . . . . . . . . . . . . . . . . . 1 . . 1 Propulsion 47 | 2 2 . . . 19 5 . . . . 1 . . . 4 1 . . 1 5 . 3 4 Treads 21 | 2 2 . . . 17 . . . . . . . . . . . . . . . . . . Leg . | . . . . . . . . . . . . . . . . . . . . . . . . Wheel 1 | . . . . . 1 . . . . . . . . . . . . . . . . . . Hover 6 | . . . . . . . . . . . . . . . . . . . . 2 . 1 3 Flight 19 | . . . . . 1 5 . . . . 1 . . . 4 1 . . 1 3 . 2 1 Utility 51 | 1 1 . . . 9 8 1 1 1 1 4 . 3 . 5 2 . 1 2 7 1 2 1 Device 19 | 1 . . . . 1 1 1 1 1 1 . . 3 . 3 2 . . 1 1 . 1 1 Storage 3 | . 1 . . . 1 1 . . . . . . . . . . . . . . . . . Processor 13 | . . . . . . 3 . . . . 2 . . . 2 . . . . 5 1 . . Hackware 8 | . . . . . . 3 . . . . 2 . . . . . . 1 1 . . 1 . Protection 8 | . . . . . 7 . . . . . . . . . . . . . . 1 . . . Artifact . | . . . . . . . . . . . . . . . . . . . . . . . . Weapon 42 | 1 2 . . 3 11 2 1 . 1 2 2 . 2 . 1 5 . 1 2 5 . 1 . Energy Gun 1 | . . . . . 1 . . . . . . . . . . . . . . . . . . Energy Cannon 4 | . . . . . 1 . . . . . . . . . . 1 . . 1 . . 1 . Ballistic Gun 11 | 1 2 . . 2 6 . . . . . . . . . . . . . . . . . . Ballistic Cannon . | . . . . . . . . . . . . . . . . . . . . . . . . Launcher 3 | . . . . . 1 . . . . 2 . . . . . . . . . . . . . Special Weapon 2 | . . . . 1 1 . . . . . . . . . . . . . . . . . . Impact Weapon . | . . . . . . . . . . . . . . . . . . . . . . . . Slashing Weapon 14 | . . . . . 1 1 1 . 1 . 1 . 1 . . 3 . 1 1 3 . . . Piercing Weapon 7 | . . . . . . 1 . . . . 1 . 1 . 1 1 . . . 2 . . . Special Melee Weapon . | . . . . . . . . . . . . . . . . . . . . . . . . Unidentified Prototypes 9 | . . . . . 2 1 1 . . . 2 . 1 . . . . . . . . . 2 Corrupted Parts 1 | . . . . . . . . . . . . . . . . . . . 1 . . . . System Corruption 10 | . . . . . . . . . . . . . . . . . . . 10 . . . . Parts Lost 44 | . . . . . 11 . 1 . 1 . 1 . . . 2 6 . . 11 8 . 1 2 Power 5 | . . . . . 1 . . . . . . . . . . 1 . . 2 1 . . . Propulsion 17 | . . . . . 5 . . . . . 1 . . . . 2 . . 4 3 . 1 1 Utility 15 | . . . . . 2 . 1 . 1 . . . . . 2 2 . . 4 3 . . . Weapon 7 | . . . . . 3 . . . . . . . . . . 1 . . 1 1 . . 1 Highest Loss Streak 8 | . . . . . 4 . 1 . 1 . 1 . . . 2 3 . . 8 4 . 1 2 To Critical Strikes . | . . . . . . . . . . . . . . . . . . . . . . . . Average Slot Usage (%) 91 | . 100 100 100 98 88 94 90 96 96 96 99 100 94 93 97 95 88 93 82 57 31 43 76 Engine 6 | . 14 14 14 12 8 3 7 7 7 7 6 6 6 6 5 2 . . 2 1 . . . Core 1 | . . . . . . 3 . . . . . . . . . 2 5 5 2 . . 3 . Treads 14 | . 28 28 28 28 32 . . . . . . . . . . . . . . . . . . Flight 12 | . . . . . . 37 38 38 38 38 32 33 33 33 27 26 23 23 18 3 . . 3 Device 8 | . 14 14 14 14 7 4 . 7 7 13 8 6 6 6 10 10 11 5 5 6 . 1 8 Storage 7 | . 14 14 14 14 9 7 7 7 7 7 6 6 6 6 5 5 5 5 4 . . . . Processor 11 | . . . . . . 12 15 15 15 7 14 20 20 20 24 29 29 29 28 23 21 21 21 Hackware 4 | . . . . . . 12 11 7 7 7 16 13 13 13 9 5 5 10 7 8 . 1 5 Protection 3 | . . . . . 11 . . . . . . . . . . . . . . 1 . . . Ballistic Gun 9 | . 28 28 28 27 11 . . . . . . . . . . . . . . . . . . Slashing Weapon 3 | . . . . . 5 8 . 3 3 4 4 . 4 6 5 3 . 4 3 4 . . . Piercing Weapon 2 | . . . . . . 1 7 7 7 7 7 13 3 . 4 4 5 5 4 2 5 5 5 Naked Turns . | . . . . . . . . . . . . . . . . . . . . . . . . Heaviest Build 71 | 12 30 30 30 32 71 25 27 27 27 28 28 26 28 26 30 35 24 26 32 19 3 20 29 Greatest Support 92 | 40 46 46 46 46 92 25 31 31 31 31 32 32 32 26 35 35 26 26 28 26 12 23 56 Greatest Overweight (x) 12 | . . . . . 12 . . . . . . . . . . 1 . . 1 2 . 1 . Average Overweight (x) . | . . . . . . . . . . . . . . . . . . . . . . . . Largest Inventory Capacity 20 | 8 15 15 15 15 20 20 10 10 10 10 10 10 10 10 10 10 10 10 10 5 5 5 5 Average Capacity 12 | 8 14 15 15 15 17 10 10 10 10 10 10 10 10 10 10 10 10 10 9 5 5 5 5 Most Carried 20 | 6 15 15 15 15 20 20 10 10 10 10 10 9 10 10 10 10 10 10 10 5 4 5 5 Average Carried 12 | 4 12 15 14 14 17 9 9 8 9 9 8 9 9 10 9 9 10 9 8 4 4 4 3 Final Capacity 20 | 8 15 15 15 15 20 10 10 10 10 10 10 10 10 10 10 10 10 10 5 5 5 5 5 Final Carried 20 | 4 15 15 15 15 20 10 8 10 10 10 9 9 10 10 10 10 10 10 5 4 4 5 3 Class Distribution -------------------- 38% | Mutant 27% | Hacker-Sprinter 15% | Scavenger-Mutant 4% | Sprinter 4% | Commander-Sprinter 3% | Hacker-Scout 3% | Hacker-Gladiator Dominant Class ---------------- Mutant | -10/Materials Mutant | -10/Mines Mutant | -10/Exiles Mutant | -9/Mines Scavenger-Mutant | -8/Materials Hacker-Sprinter | -7/Factory Hacker-Sprinter | -7/Lower Caves Sprinter | -7/Lower Caves Sprinter | -7/Data Miner Sprinter | -6/Proximity Caves Hacker-Sprinter | -6/Factory Hacker-Sprinter | -6/Lower Caves Hacker-Sprinter | -6/Zion Hacker-Sprinter | -5/Proximity Caves Hacker-Scout | -5/Factory Commander-Sprinter | -5/Extension Hacker-Sprinter | -5/Cetus Hacker-Sprinter | -5/Archives Hacker-Gladiator | -5/Hub_04(d) Hacker-Gladiator | -4/Factory Mutant | -4/Upper Caves Mutant | -4/Upper Caves Mutant | -4/Zhirov Resources | -11 -10 -10 -10 -9 -8 -7 -7 -7 -7 -6 -6 -6 -6 -5 -5 -5 -5 -5 -5 -4 -4 -4 -4 ----------- Run | Yrd Mat Min Exi Min Mat Fac Low Low Dat Pro Fac Low Zio Pro Fac Ext Cet Arc Hub Fac Upp Upp Zhi Matter Collected 2421 | 226 248 36 . 206 734 130 6 13 22 80 106 . 33 25 87 150 . 10 41 165 15 88 . Remotely . | . . . . . . . . . . . . . . . . . . . . . . . . Salvage Created 5365 | 37 462 80 . 113 1598 290 . . 22 78 207 . . 25 411 1008 132 32 533 230 . 107 . Parts 307 | 5 28 3 . 2 101 18 . . 4 5 17 . . 4 12 44 5 2 43 8 . 6 . Haulers Intercepted 12 | . 2 . . . 3 3 . . . . . . . . 2 . . . . 2 . . . Recyclers Shooed . | . . . . . . . . . . . . . . . . . . . . . . . . Parts Field Recycled . | . . . . . . . . . . . . . . . . . . . . . . . . Retrieved Matter . | . . . . . . . . . . . . . . . . . . . . . . . . Parts Self-Destructed 20 | . . . . . . . . . . 5 . 5 . 4 . . . . . . . 6 . Prevented 3 | . . . . . . . . 1 . . . . . . . . . . . . . 2 . Kills | -11 -10 -10 -10 -9 -8 -7 -7 -7 -7 -6 -6 -6 -6 -5 -5 -5 -5 -5 -5 -4 -4 -4 -4 ------- Run | Yrd Mat Min Exi Min Mat Fac Low Low Dat Pro Fac Low Zio Pro Fac Ext Cet Arc Hub Fac Upp Upp Zhi Combat Hostiles Destroyed 81 | . 8 2 . 7 31 1 . . . 3 7 . . 2 3 10 2 . 2 . . 3 . Melee 38 | . . . . . 10 1 . . . 3 7 . . 2 3 10 2 . . . . . . Guns 32 | . 8 2 . 7 15 . . . . . . . . . . . . . . . . . . Cannons 7 | . . . . . 4 . . . . . . . . . . . . . . . . 3 . AOE 3 | . . . . . 2 . . . . . . . . . . . . . 1 . . . . Classes Destroyed 16 | 1 4 . . 2 6 2 . . . . . . . 1 . . . . . . . . . Worker 9 | . . . . . 2 . . . . . . . . . . . . . 7 . . . . Builder 7 | . . . . . 5 . . . . . . . . . . 1 . . 1 . . . . Tunneler 3 | 2 1 . . . . . . . . . . . . . . . . . . . . . . Hauler 12 | . 2 . . . 3 3 . . . . . . . . 2 . . . . 2 . . . Recycler 3 | . . . . . 1 . . . . . . . . . . 2 . . . . . . . Operator 3 | . 1 . . . . 1 . . . . . . . . . . . 1 . . . . . Drone 2 | . . . . . . . . . . . . . . 2 . . . . . . . . . Watcher 10 | . . . . . . 3 . . . . 1 . . . . 2 . . 3 1 . . . Swarmer 19 | . . . . 1 6 . . . . 3 7 . . . . . . . . . . 2 . Grunt 28 | . 6 2 . . 13 . . . . . . . . . 2 4 . . 1 . . . . Duelist 2 | . . . . . 2 . . . . . . . . . . . . . . . . . . Sentry 14 | . . . . . 9 . . . . . . . . . . 5 . . . . . . . Hunter 3 | . . . . . 1 . . . . . . . . . 1 . . . 1 . . . . Programmer 3 | . . . . . . 1 . . . . . . . . . 1 . . . . . 1 . Cetus Guard 2 | . . . . . . . . . . . . . . . . . 2 . . . . . . Enhanced Grunt 2 | . . . . . . . . . . . . . . . . . . . 2 . . . . Subdweller 2 | . 2 . . . . . . . . . . . . . . . . . . . . . . Assembled 6 | . . . . 6 . . . . . . . . . . . . . . . . . . . Best Kill Streak 13 | 1 2 2 . 4 6 2 . . 1 3 4 . . 2 4 3 2 1 13 2 . 3 . Combat Bots Only 6 | . 2 2 . 4 6 1 . . . 3 4 . . 2 2 3 2 . 2 . . 3 . Max Kills in Single Turn 14 | 1 1 1 . 1 2 1 . . 1 1 1 . . 1 1 1 1 1 14 1 . 1 . Gunslinging 1 | . . . . . 1 . . . . . . . . . . . . . . . . . . Exploded 2 | . . . . . 2 . . . . . . . . . . . . . 1 . . . . Melee 1 | . . . . . 1 1 . . . 1 1 . . 1 1 1 1 . . . . . . Uniques/NPCs Destroyed 1 | . . . . . . . . . 1 . . . . . . . . . . . . . . Data Miner (-7/Data Miner) Combat | -11 -10 -10 -10 -9 -8 -7 -7 -7 -7 -6 -6 -6 -6 -5 -5 -5 -5 -5 -5 -4 -4 -4 -4 -------- Run | Yrd Mat Min Exi Min Mat Fac Low Low Dat Pro Fac Low Zio Pro Fac Ext Cet Arc Hub Fac Upp Upp Zhi Hostile Shots Fired 672 | . 18 12 . 41 167 13 23 1 6 17 16 4 . . 36 35 . 3 75 101 . 67 37 Missed 242 | . 3 4 . 15 40 6 11 . 4 8 6 3 . . 15 13 . 2 30 47 . 18 17 Damage Taken 7741 | . 228 106 . 347 2104 85 163 13 97 165 137 12 . . 353 550 55 48 1084 1206 . 787 201 Core 2670 | . . 18 . 33 298 31 71 13 32 43 27 . . . 101 163 55 . 604 604 . 497 80 Absorbed by Shields . | . . . . . . . . . . . . . . . . . . . . . . . . Regen/Repaired (Parts) 201 | . . . . . . . . . . . . . . . 201 . . . . . . . . Core Remaining (%) 66 | 100 . . . 79 45 . . . . 72 . . . 96 . . . . 7 . . . . Volleys Fired 179 | 8 29 6 . 28 78 . . . . 3 . . . . . 14 . . 5 . . 8 . Largest 2 | 2 2 2 . 2 2 . . . . 1 . . . . . 1 . . 1 . . 1 . Hottest 100 | 40 46 46 . 100 100 . . . . 39 . . . . . 98 . . 98 . . 98 . Shots Fired 306 | 16 58 12 . 54 133 . . . . 3 . . . . . 14 . . 5 . . 10 1 Gun 251 | 16 58 12 . 52 113 . . . . . . . . . . . . . . . . . . Cannon 44 | . . . . . 14 . . . . . . . . . . 14 . . 5 . . 10 1 Launcher 6 | . . . . . 3 . . . . 3 . . . . . . . . . . . . . Special 5 | . . . . 2 3 . . . . . . . . . . . . . . . . . . Kinetic 251 | 16 58 12 . 52 113 . . . . . . . . . . . . . . . . . . Thermal 49 | . . . . 2 17 . . . . . . . . . . 14 . . 5 . . 10 1 Explosive 6 | . . . . . 3 . . . . 3 . . . . . . . . . . . . . Electromagnetic . | . . . . . . . . . . . . . . . . . . . . . . . . Robot Hit Streak 9 | 5 9 3 . 8 8 . . . . . . . . . . . . . . . . 4 2 Robot Miss Streak 5 | 2 2 2 . 5 3 . . . . . . . . . . . . . . . . 1 . Penetration Max . | . . . . . . . . . . . . . . . . . . . . . . . . Secondary Targets 2 | . . 1 . . 1 . . . . . . . . . . . . . . . . . . Max Gunslinging Chain 1 | . . 1 . . 1 . . . . . . . . . . . . . . . . . . Shots Hit Robots 332 | 11 42 7 . 30 125 21 . . 1 4 12 . . 3 16 37 5 3 1 4 . 9 1 Core Hits 183 | 2 20 3 . 13 67 7 . . 1 3 8 . . . 6 17 3 . 27 3 . 3 . Critical Kills 1 | . . 1 . . . . . . . . . . . . . . . . . . . . . Critical Parts Destroyed . | . . . . . . . . . . . . . . . . . . . . . . . . Critical Strikes 13 | . . 1 . . 3 2 . . . . 2 . . . 1 3 . . . 1 . . . Destroy 1 | . . 1 . . . . . . . . . . . . . . . . . . . . . Sever 7 | . . . . . 3 2 . . . . . . . . 1 1 . . . . . . . Impale 5 | . . . . . . . . . . . 2 . . . . 2 . . . 1 . . . Melee Attacks 274 | . . . . . 60 36 2 . 12 7 26 . 1 6 28 47 9 3 14 18 . 5 . Impact . | . . . . . . . . . . . . . . . . . . . . . . . . Slashing 140 | . . . . . 60 34 . . 2 1 4 . 1 6 12 10 . 1 2 7 . . . Piercing 134 | . . . . . . 2 2 . 10 6 22 . . . 16 37 9 2 12 11 . 5 . Sneak Attacks 30 | . . . . . 10 3 . . 1 . . . . . 2 8 . 3 . 3 . . . Combat Hostiles 5 | . . . . . . . . . . . . . . . . 5 . . . . . . . Follow-up Attacks 16 | . . . . . . 2 . . . . 2 . . . 5 6 . . . 1 . . . Damage Inflicted 12591 | 108 556 100 . 461 3331 1058 . . 81 139 462 . . 173 912 2517 262 258 1417 369 . 355 32 Guns 2322 | 108 556 100 . 461 1097 . . . . . . . . . . . . . . . . . . Cannons 510 | . . . . . 212 . . . . . . . . . . . . . . . . 266 32 Explosions 1793 | . . . . . 432 . . . . . . . . . . . . . 1361 . . . . Melee 7966 | . . . . . 1590 1058 . . 81 139 462 . . 173 912 2517 262 258 56 369 . 89 . Ramming . | . . . . . . . . . . . . . . . . . . . . . . . . Kinetic 2322 | 108 556 100 . 461 1097 . . . . . . . . . . . . . . . . . . Thermal 510 | . . . . . 212 . . . . . . . . . . . . . . . . 266 32 Explosive 432 | . . . . . 432 . . . . . . . . . . . . . . . . . . Electromagnetic 1361 | . . . . . . . . . . . . . . . . . . . 1361 . . . . Impact . | . . . . . . . . . . . . . . . . . . . . . . . . Slashing 4039 | . . . . . 1590 975 . . . . 50 . . 173 595 436 . 128 . 92 . . . Piercing 3927 | . . . . . . 83 . . 81 139 412 . . . 317 2081 262 130 56 277 . 89 . Highest Corruption 14 | . . . . . 1 . . . . . . . . . . . . . 14 5 5 7 7 Average Corruption 2 | . . . . . 1 . . . . . . . . . . . . . 3 2 5 6 6 Corruption Purged 3 | . . . . . . . . . . . . . . . . . . . . . . . 3 Corruption Blocked . | . . . . . . . . . . . . . . . . . . . . . . . . Effects 33 | . . . . . 7 . . . . . . . . . . . . . 5 2 2 10 7 Message Errors 7 | . . . . . 1 . . . . . . . . . . . . . . . . 4 2 Matter Fused 9 | . . . . . 2 . . . . . . . . . . . . . 4 . 1 2 . Heat Flow Errors 5 | . . . . . 2 . . . . . . . . . . . . . . 1 . 1 1 Energy Discharges 4 | . . . . . 2 . . . . . . . . . . . . . . . . 1 1 Data Loss (minor) 2 | . . . . . . . . . . . . . . . . . . . . . 1 . 1 Misfires 3 | . . . . . . . . . . . . . . . . . . . . . . 2 1 Alerts 2 | . . . . . . . . . . . . . . . . . . . . 1 . . 1 Misdirections 1 | . . . . . . . . . . . . . . . . . . . 1 . . . . Overload Shots . | . . . . . . . . . . . . . . . . . . . . . . . . Overflow Damage 934 | . . . . . 69 108 . . . . 15 . . 63 . 353 . 83 77 154 . 12 . Projectiles 16 | . . . . . 4 . . . . . . . . . . . . . . . . 12 . Explosions 105 | . . . . . 28 . . . . . . . . . . . . . 77 . . . . Melee 813 | . . . . . 37 108 . . . . 15 . . 63 . 353 . 83 . 154 . . . Knockbacks . | . . . . . . . . . . . . . . . . . . . . . . . . Impact . | . . . . . . . . . . . . . . . . . . . . . . . . Kinetic . | . . . . . . . . . . . . . . . . . . . . . . . . Secondary . | . . . . . . . . . . . . . . . . . . . . . . . . Self-Inflicted Damage 202 | . . . . . 79 . . . . 14 . . . . . . . . 109 . . . . Shots 4 | . . . . . 2 . . . . 1 . . . . . . . . 1 . . . . Rammed . | . . . . . . . . . . . . . . . . . . . . . . . . Targets Rammed . | . . . . . . . . . . . . . . . . . . . . . . . . Kicked . | . . . . . . . . . . . . . . . . . . . . . . . . Crushed . | . . . . . . . . . . . . . . . . . . . . . . . . Highest Temperature 270 | . 27 37 . 37 270 4 11 3 . 2 . . . . . 231 . . 186 196 . 144 203 Average Temperature 38 | . 9 22 . 12 43 2 8 3 . 2 . . . . . 103 . . 96 105 . 60 91 Received Heat Transfer 1657 | . 144 78 . 240 810 6 12 9 . 9 . . . . 18 117 12 . 175 9 . . 18 Siege Activations . | . . . . . . . . . . . . . . . . . . . . . . . . Robots Corrupted 1 | . . . . . . . . . . . . . . . . . . . 1 . . . . Combat Hostiles 1 | . . . . . . . . . . . . . . . . . . . 1 . . . . Parts Fried 1 | . . . . . . . . . . . . . . . . . . . 1 . . . . Impact Corruptions . | . . . . . . . . . . . . . . . . . . . . . . . . Robots Melted . | . . . . . . . . . . . . . . . . . . . . . . . . Combat Hostiles . | . . . . . . . . . . . . . . . . . . . . . . . . Parts Melted 1 | . . . . . . . . . . . . . . . . . . . . . . 1 . Heat Transferred 733 | . . . . . 333 . . . . . . . . . . . . . . . . 350 50 Parts Sabotaged . | . . . . . . . . . . . . . . . . . . . . . . . . Parts Stolen . | . . . . . . . . . . . . . . . . . . . . . . . . Parts Stripped . | . . . . . . . . . . . . . . . . . . . . . . . . Power Chain Reactions . | . . . . . . . . . . . . . . . . . . . . . . . . Alert | -11 -10 -10 -10 -9 -8 -7 -7 -7 -7 -6 -6 -6 -6 -5 -5 -5 -5 -5 -5 -4 -4 -4 -4 ------- Run | Yrd Mat Min Exi Min Mat Fac Low Low Dat Pro Fac Low Zio Pro Fac Ext Cet Arc Hub Fac Upp Upp Zhi Peak Influence 1340 | 10 139 50 . 35 477 455 . . . . 262 . . . 329 596 267 351 1340 676 . . . Initial 656 | . 6 . . . 13 200 . . . . 72 . . . 156 123 256 106 . 656 . . . Average 216 | 4 85 7 . 1 249 300 . . . . 166 . . . 254 370 259 160 453 649 . . . Maximum Alert Level 4 | . . . . . 2 2 . . . . 1 . . . 1 2 1 1 4 2 . . . Low Security (%) 52 | 100 100 100 . 100 46 4 . . . . 81 . . . 25 5 . 69 27 . . . . Level 1 31 | . . . . . 33 83 . . . . 18 . . . 74 50 99 30 23 . . . . Level 2 15 | . . . . . 19 12 . . . . . . . . . 44 . . 36 100 . . . Level 3 . | . . . . . . . . . . . . . . . . . . . . . . . . Level 4 . | . . . . . . . . . . . . . . . . . . . 12 . . . . Level 5 . | . . . . . . . . . . . . . . . . . . . . . . . . High Security . | . . . . . . . . . . . . . . . . . . . . . . . . Max Security . | . . . . . . . . . . . . . . . . . . . . . . . . Squads Dispatched 25 | . . . . . 5 4 . . . 1 . . . . 1 . . . 8 6 . . . Investigation 9 | . . . . . . 3 . . . . . . . . 1 . . . 4 1 . . . Extermination 2 | . . . . . . 1 . . . . . . . . . . . . . 1 . . . Reinforcement 6 | . . . . . 1 . . . . . . . . . . . . . 4 1 . . . Assault 5 | . . . . . 1 . . . . 1 . . . . . . . . . 3 . . . Garrison 3 | . . . . . 3 . . . . . . . . . . . . . . . . . . Intercept . | . . . . . . . . . . . . . . . . . . . . . . . . Searches Triggered . | . . . . . . . . . . . . . . . . . . . . . . . . Construction Impeded 1 | . . . . . 1 . . . . . . . . . . . . . . . . . . Haulers Reinforced . | . . . . . . . . . . . . . . . . . . . . . . . . Active Scanning Responses . | . . . . . . . . . . . . . . . . . . . . . . . . Cargo Convoy Interrupts . | . . . . . . . . . . . . . . . . . . . . . . . . Stealth | -11 -10 -10 -10 -9 -8 -7 -7 -7 -7 -6 -6 -6 -6 -5 -5 -5 -5 -5 -5 -4 -4 -4 -4 --------- Run | Yrd Mat Min Exi Min Mat Fac Low Low Dat Pro Fac Low Zio Pro Fac Ext Cet Arc Hub Fac Upp Upp Zhi Distress Signals 19 | . 3 . . . 8 1 . . . . . . . . 1 1 1 . 4 . . . . Communications Jammed . | . . . . . . . . . . . . . . . . . . . . . . . . Distress Signals . | . . . . . . . . . . . . . . . . . . . . . . . . Times Spotted 229 | . 18 2 . 13 60 9 8 7 4 6 8 4 . 2 11 17 4 4 23 21 . 5 3 Peak Tracking Total 15 | . 4 2 . 7 6 7 8 5 4 6 4 4 . 1 4 4 4 1 13 15 . 5 3 Tactical Retreats 24 | . 1 . . 6 1 4 . 2 . 3 . 1 . . 3 . . . 1 2 . . . Traps | -11 -10 -10 -10 -9 -8 -7 -7 -7 -7 -6 -6 -6 -6 -5 -5 -5 -5 -5 -5 -4 -4 -4 -4 ------- Run | Yrd Mat Min Exi Min Mat Fac Low Low Dat Pro Fac Low Zio Pro Fac Ext Cet Arc Hub Fac Upp Upp Zhi Traps Triggered 9 | . . . . . 1 1 . . . . . . . . . 4 . . . 3 . . . Indirectly . | . . . . . . . . . . . . . . . . . . . . . . . . Trap Hack Attempts . | . . . . . . . . . . . . . . . . . . . . . . . . Triggered . | . . . . . . . . . . . . . . . . . . . . . . . . Disarmed . | . . . . . . . . . . . . . . . . . . . . . . . . Reprogrammed . | . . . . . . . . . . . . . . . . . . . . . . . . Reused . | . . . . . . . . . . . . . . . . . . . . . . . . Traps Reconfigurated 10 | . . . . . . . . . . . . . . . . 10 . . . . . . . Traps Extracted . | . . . . . . . . . . . . . . . . . . . . . . . . Installed . | . . . . . . . . . . . . . . . . . . . . . . . . Triggered 1 | . . . . . . . . 1 . . . . . . . . . . . . . . . Machines | -11 -10 -10 -10 -9 -8 -7 -7 -7 -7 -6 -6 -6 -6 -5 -5 -5 -5 -5 -5 -4 -4 -4 -4 ---------- Run | Yrd Mat Min Exi Min Mat Fac Low Low Dat Pro Fac Low Zio Pro Fac Ext Cet Arc Hub Fac Upp Upp Zhi Machines Disabled 25 | . . . . . 1 . 1 . . . . . . . . . 1 1 21 . . . . Max in Single Turn 18 | . . . . . 1 . 1 . . . . . . . . . 1 . 18 . . . . Garrison Access 5 | . . . . . 1 2 . . . . 1 . . . 1 . . . . . . . . Network Hub 1 | . . . . . . . . . . . . . . . . . . . 1 . . . . Machines Repaired . | . . . . . . . . . . . . . . . . . . . . . . . . Machines Dismantled . | . . . . . . . . . . . . . . . . . . . . . . . . Machines Sabotaged . | . . . . . . . . . . . . . . . . . . . . . . . . Overloaded Fab Kills . | . . . . . . . . . . . . . . . . . . . . . . . . Hacking | -11 -10 -10 -10 -9 -8 -7 -7 -7 -7 -6 -6 -6 -6 -5 -5 -5 -5 -5 -5 -4 -4 -4 -4 --------- Run | Yrd Mat Min Exi Min Mat Fac Low Low Dat Pro Fac Low Zio Pro Fac Ext Cet Arc Hub Fac Upp Upp Zhi Machines Accessed 89 | . 7 . 2 . 12 17 2 1 4 . 7 . 1 1 8 13 3 . 4 3 . . 4 Terminals 52 | . 6 . . . 10 7 . . . . 3 . . 1 5 12 3 . 4 1 . . . Fabricators 7 | . . . . . . 3 . . . . 2 . . . 1 . . . . 1 . . . Repair Stations 5 | . . . . . 1 2 . . . . 1 . . . 1 . . . . . . . . Recycling Units 5 | . 1 . . . . 2 . . . . . . . . . 1 . . . 1 . . . Scanalyzers . | . . . . . . . . . . . . . . . . . . . . . . . . Garrison Access 6 | . . . . . 1 3 . . . . 1 . . . 1 . . . . . . . . Total Hacks 259 | . 20 . 2 . 25 43 2 1 32 . 33 . 6 1 35 22 5 . 5 14 . . 13 Successful 167 | . 11 . 2 . 16 16 2 1 32 . 21 . 6 1 21 10 3 . 3 9 . . 13 Failed 92 | . 9 . . . 9 27 . . . . 12 . . . 14 12 2 . 2 5 . . . Catastrophic 13 | . . . . . 1 7 . . . . 1 . . . 1 . 1 . 1 1 . . . Database Lockouts . | . . . . . . . . . . . . . . . . . . . . . . . . Manual 109 | . 17 . 1 . 22 22 . . . . 23 . . . 4 7 1 . 5 7 . . . Terminals 139 | . 18 . . . 23 21 . . . . 23 . . 1 17 21 5 . 5 5 . . . Fabricators 23 | . . . . . . 9 . . . . 8 . . . 3 . . . . 3 . . . Repair Stations 16 | . . . . . 1 2 . . . . 1 . . . 12 . . . . . . . . Recycling Units 13 | . 2 . . . . 4 . . . . . . . . . 1 . . . 6 . . . Scanalyzers . | . . . . . . . . . . . . . . . . . . . . . . . . Garrison Access 12 | . . . . . 1 7 . . . . 1 . . . 3 . . . . . . . . Terminal Hacks 99 | . 5 . 2 . 6 3 2 1 32 . 10 . 6 1 7 7 3 . . 1 . . 13 Record 23 | . . . 1 . . . 1 . 11 . . . . 1 2 . 2 . . . . . 5 Part Schematic 23 | . 1 . . . . . . . 11 . 1 . 6 . . . . . . . . . 4 Robot Schematic 7 | . . . . . . . . . 7 . . . . . . . . . . . . . . Prototype ID Bank 13 | . 1 . . . 2 . . . 3 . 2 . . . 1 . . . . . . . 4 Open Door 10 | . . . . . . . 1 1 . . . . . . 1 6 1 . . . . . . Level Access Points 1 | . . . . . . . . . . . 1 . . . . . . . . . . . . Branch Access Points 3 | . . . . . . 1 . . . . 1 . . . . . . . . 1 . . . Terminal Index 3 | . 1 . . . 1 1 . . . . . . . . . . . . . . . . . Alert Level 2 | . . . . . . . . . . . 1 . . . 1 . . . . . . . . Locate Traps 2 | . 1 . . . 1 . . . . . . . . . . . . . . . . . . Transport Status 1 | . . . . . . . . . . . 1 . . . . . . . . . . . . Hauler Manifests 5 | . . . . . 1 1 . . . . 1 . . . 1 1 . . . . . . . Registered Components 2 | . . . . . . . . . . . 1 . . . 1 . . . . . . . . Registered Prototypes 2 | . . . . . 1 . . . . . 1 . . . . . . . . . . . . Zone Layout 1 | . 1 . . . . . . . . . . . . . . . . . . . . . . Derelict Proto ID Bank 1 | . . . 1 . . . . . . . . . . . . . . . . . . . . Fabricator Hacks 9 | . . . . . . 3 . . . . 3 . . . . . . . . 3 . . . Network Status 5 | . . . . . . 2 . . . . 2 . . . . . . . . 1 . . . Load Schematic 1 | . . . . . . . . . . . . . . . . . . . . 1 . . . Build 3 | . . . . . . 1 . . . . 1 . . . . . . . . 1 . . . Repair Station Hacks 10 | . . . . . . . . . . . . . . . 10 . . . . . . . . Scan Component 5 | . . . . . . . . . . . . . . . 5 . . . . . . . . Repair 5 | . . . . . . . . . . . . . . . 5 . . . . . . . . Recycling Unit Hacks 2 | . . . . . . . . . . . . . . . . . . . . 2 . . . Report Inventory 1 | . . . . . . . . . . . . . . . . . . . . 1 . . . Retrieve Components 1 | . . . . . . . . . . . . . . . . . . . . 1 . . . Scanalyzer . | . . . . . . . . . . . . . . . . . . . . . . . . Garrison Access Hacks 5 | . . . . . 1 2 . . . . 1 . . . 1 . . . . . . . . Seal Access 5 | . . . . . 1 2 . . . . 1 . . . 1 . . . . . . . . Unauthorized Hacks 42 | . 6 . . . 9 8 . . . . 7 . . . 3 3 . . 3 3 . . . Terminals 28 | . 6 . . . 8 1 . . . . 3 . . . 3 2 . . 3 2 . . . Track 4 | . 3 . . . . . . . . . . . . . . 1 . . . . . . . Assimilate 6 | . . . . . 4 1 . . . . . . . . 1 . . . . . . . . Botnet 9 | . 2 . . . 3 . . . . . 2 . . . 1 . . . . 1 . . . Operators 6 | . 1 . . . 1 . . . . . 1 . . . 1 1 . . . 1 . . . Sabotage 3 | . . . . . . . . . . . . . . . . . . . 3 . . . . Fabricators 6 | . . . . . . 3 . . . . 3 . . . . . . . . . . . . Prioritize 2 | . . . . . . 1 . . . . 1 . . . . . . . . . . . . Liberate 2 | . . . . . . 1 . . . . 1 . . . . . . . . . . . . Haulers 2 | . . . . . . 1 . . . . 1 . . . . . . . . . . . . Repair Stations 3 | . . . . . 1 1 . . . . 1 . . . . . . . . . . . . Mechanics 3 | . . . . . 1 1 . . . . 1 . . . . . . . . . . . . Recycling Units 5 | . . . . . . 3 . . . . . . . . . 1 . . . 1 . . . Reject 1 | . . . . . . 1 . . . . . . . . . . . . . . . . . Recyclers 4 | . . . . . . 2 . . . . . . . . . 1 . . . 1 . . . Scanalyzers . | . . . . . . . . . . . . . . . . . . . . . . . . Garrison Access . | . . . . . . . . . . . . . . . . . . . . . . . . Data Cores Recovered 1 | . 1 . . . . . . . . . . . . . . . . . . . . . . Used 1 | . 1 . . . . . . . . . . . . . . . . . . . . . . Hacking Detections 45 | . 5 . . . 6 11 . . . . 3 . . . 7 7 2 . 1 3 . . . Full Trace Events 6 | . . . . . 1 2 . . . . . . . . 1 . . . 1 1 . . . Feedback Events 1 | . . . . . . . . . . . . . . . . . . . 1 . . . . Corruption 1 | . . . . . . . . . . . . . . . . . . . 1 . . . . Feedback Blocked . | . . . . . . . . . . . . . . . . . . . . . . . . Robot Schematics Acquired 9 | . . . . . . . . . 7 . . . 2 . . . . . . . . . . Robots Built 2 | . . . . . . 1 . . . . 1 . . . . . . . . . . . . Authchips . | . . . . . . . . . . . . . . . . . . . . . . . . Time 174 | . . . . . . 116 . . . . 58 . . . . . . . . . . . . Total Robot Build Rating 6 | . . . . . . 3 . . . . 3 . . . . . . . . . . . . Part Schematics Acquired 36 | . 1 . . . . . . . 11 . 1 . 19 . . . . . . . . . 4 Parts Built 1 | . . . . . . . . . . . . . . . . . . . . 1 . . . Authchips . | . . . . . . . . . . . . . . . . . . . . . . . . Time 152 | . . . . . . . . . . . . . . . . . . . . 152 . . . Total Part Build Rating 5 | . . . . . . . . . . . . . . . . . . . . 5 . . . Parts Repaired 5 | . . . . . . . . . . . . . . . 5 . . . . . . . . Time 155 | . . . . . . . . . . . . . . . 155 . . . . . . . . Parts Recycled . | . . . . . . . . . . . . . . . . . . . . . . . . Recycled Matter . | . . . . . . . . . . . . . . . . . . . . . . . . Retrieved Matter . | . . . . . . . . . . . . . . . . . . . . . . . . Retrieved Components 3 | . . . . . . . . . . . . . . . . . . . . 3 . . . Parts Scanalyzed . | . . . . . . . . . . . . . . . . . . . . . . . . Part Schematics Acquired . | . . . . . . . . . . . . . . . . . . . . . . . . Parts Damaged . | . . . . . . . . . . . . . . . . . . . . . . . . Bothacking | -11 -10 -10 -10 -9 -8 -7 -7 -7 -7 -6 -6 -6 -6 -5 -5 -5 -5 -5 -5 -4 -4 -4 -4 ------------ Run | Yrd Mat Min Exi Min Mat Fac Low Low Dat Pro Fac Low Zio Pro Fac Ext Cet Arc Hub Fac Upp Upp Zhi Used RIF Installer . | . . . . . . . . . . . . . . . . . . . . . . . . Robots Hacked . | . . . . . . . . . . . . . . . . . . . . . . . . Non-combat . | . . . . . . . . . . . . . . . . . . . . . . . . Combat . | . . . . . . . . . . . . . . . . . . . . . . . . Robot Hacks Applied . | . . . . . . . . . . . . . . . . . . . . . . . . Relay Couplers Released . | . . . . . . . . . . . . . . . . . . . . . . . . Fabnet Peak Effective % . | . . . . . . . . . . . . . . . . . . . . . . . . Robots Rewired 15 | . . . . . . . . . . . 1 . . . . 14 . . . . . . . Allies Hacked . | . . . . . . . . . . . . . . . . . . . . . . . . Hacks Repelled . | . . . . . . . . . . . . . . . . . . . . . . . . Allies | -11 -10 -10 -10 -9 -8 -7 -7 -7 -7 -6 -6 -6 -6 -5 -5 -5 -5 -5 -5 -4 -4 -4 -4 -------- Run | Yrd Mat Min Exi Min Mat Fac Low Low Dat Pro Fac Low Zio Pro Fac Ext Cet Arc Hub Fac Upp Upp Zhi Total Allies 39 | . . 3 . . 2 2 . . . . 2 . . . 1 24 5 . . . . . . Largest Group 11 | . . 3 3 3 1 1 . . . . 1 . . . 1 11 7 6 5 . . . . Highest-Rated Group 616 | . . 40 40 40 10 26 . . . . 26 . . . 26 351 616 616 471 . . . . Highest-Rated Ally 159 | . . 16 16 16 10 26 . . . . 26 . . . 26 159 159 136 96 . . . . Total Orders 6 | . . . . . 3 . . . . . 1 . . . 1 . 1 . . . . . . STAY 4 | . . . . . 2 . . . . . 1 . . . 1 . . . . . . . . FOLLOW 1 | . . . . . 1 . . . . . . . . . . . . . . . . . . AID 1 | . . . . . . . . . . . . . . . . . 1 . . . . . . Ally Attacks 172 | . . . . 7 . . . . . . 1 . . . . 61 23 24 56 . . . . Total Damage 6207 | . . . . 75 . . . . . . . . . . . 1436 1130 1051 2515 . . . . Kills 34 | . . . . . . . . . . . . . . . . 8 3 4 19 . . . . Allies Corrupted . | . . . . . . . . . . . . . . . . . . . . . . . . Allies Melted 1 | . . . . 1 . . . . . . . . . . . . . . . . . . . Intel | -11 -10 -10 -10 -9 -8 -7 -7 -7 -7 -6 -6 -6 -6 -5 -5 -5 -5 -5 -5 -4 -4 -4 -4 ------- Run | Yrd Mat Min Exi Min Mat Fac Low Low Dat Pro Fac Low Zio Pro Fac Ext Cet Arc Hub Fac Upp Upp Zhi Robot Analysis Total 134 | . . . . . . . . . 134 . . . . . . . . . . . . . . Derelict Logs Recovered 11 | . . 2 . . . . . 1 . 1 . 2 1 3 . . . . . . 1 . . Drone Launches . | . . . . . . . . . . . . . . . . . . . . . . . . Drone Recoveries . | . . . . . . . . . . . . . . . . . . . . . . . . Exploration | -11 -10 -10 -10 -9 -8 -7 -7 -7 -7 -6 -6 -6 -6 -5 -5 -5 -5 -5 -5 -4 -4 -4 -4 ------------- Run | Yrd Mat Min Exi Min Mat Fac Low Low Dat Pro Fac Low Zio Pro Fac Ext Cet Arc Hub Fac Upp Upp Zhi Turns Passed 11441 | 94 864 985 343 497 2830 839 80 95 61 116 419 26 293 66 526 756 241 1189 170 423 83 240 205 Spaces Moved 11585 | 39 432 591 214 249 1177 2383 285 398 126 371 891 106 1058 198 738 696 191 121 271 504 116 297 133 Core 1 | . . . . . 1 . . . . . . . . . . . . . . . . . . Treads 2696 | 38 432 591 214 249 1172 . . . . . . . . . . . . . . . . . . Legs 1 | 1 . . . . . . . . . . . . . . . . . . . . . . . Wheels 4 | . . . . . 4 . . . . . . . . . . . . . . . . . . Hover 854 | . . . . . . . . . . . . . . . . . . . . 308 116 297 133 Flight 8029 | . . . . . . 2383 285 398 126 371 891 106 1058 198 738 696 191 121 271 196 . . . Fastest Speed 23 | 120 160 160 160 160 130 23 23 23 23 23 23 24 24 24 24 24 26 26 26 35 70 61 40 Average Speed 59 | 158 160 160 160 160 162 23 23 23 23 23 23 24 24 24 24 28 26 26 42 63 70 63 48 Slowest Speed 650 | 160 160 160 160 160 650 23 23 23 23 23 24 24 24 24 27 102 26 26 105 175 70 110 61 Overloaded Moves . | . . . . . . . . . . . . . . . . . . . . . . . . Propulsion Burnouts . | . . . . . . . . . . . . . . . . . . . . . . . . Robots Hopped 18 | . . . . . . 3 1 . . . 10 . . . . 3 . . 1 . . . . Cave-ins Triggered 1 | . . . . . . . . . . . . . . . . . . . 1 . . . . Teleports 1 | . . . . . . . . . . . . . . . . . . . . . . . 1 Exploration Rate (%) 55 | 4 88 95 58 57 70 63 53 63 81 52 28 34 87 52 16 69 82 77 43 13 31 50 60 Regions Visited 23 Branch Regions 17 Pre-discovered Areas 31 | . . 1 1 1 . . . . 24 . . . 1 . . . . . . . . . 3 Known Exits Taken 7 | . . . . . . 1 . . . . 1 . . 1 . . . . 1 1 1 1 . Unknown Exits Taken 16 | 1 1 1 1 1 1 . 1 1 1 1 . 1 1 . 1 1 1 1 . . . . . Scrap Searched 25 | . . . . 1 . . . 11 . 1 . 2 3 4 . . . . . . 2 1 . Spaces Dug 158 | . . . . 2 18 8 1 . 1 62 9 . . 2 9 17 . . 15 14 . . . Terrain Destroyed 302 | . . . . 2 29 8 1 . 1 62 9 . . 2 9 17 . . 145 14 . 3 . Melee 66 | . . . . . 7 8 1 . 1 2 9 . . 2 9 3 . . 10 14 . . . Projectile 26 | . . . . 2 2 . . . . . . . . . . 14 . . 5 . . 3 . AOE 210 | . . . . . 20 . . . . 60 . . . . . . . . 130 . . . . Terrain Rammed . | . . . . . . . . . . . . . . . . . . . . . . . . Walls Destroyed . | . . . . . . . . . . . . . . . . . . . . . . . . Machines Disabled . | . . . . . . . . . . . . . . . . . . . . . . . . Actions | -11 -10 -10 -10 -9 -8 -7 -7 -7 -7 -6 -6 -6 -6 -5 -5 -5 -5 -5 -5 -4 -4 -4 -4 --------- Run | Yrd Mat Min Exi Min Mat Fac Low Low Dat Pro Fac Low Zio Pro Fac Ext Cet Arc Hub Fac Upp Upp Zhi Total 15342 | 56 548 619 215 288 1858 2629 294 400 141 388 1057 105 1094 206 1049 1168 368 1273 298 572 116 329 271 Wait 2866 | 4 73 23 . 4 461 154 6 . 1 4 129 . 26 3 269 235 169 1147 5 21 . 7 125 Move 11525 | 38 431 590 213 248 1176 2376 282 397 125 370 870 105 1057 197 737 689 190 120 267 503 115 296 133 Hop 18 | . . . . . . 3 1 . . . 10 . . . . 3 . . 1 . . . . Pick Up 83 | . 8 . 1 2 22 19 . 1 2 . 5 . . . 7 6 . . . 6 . 3 1 Fast Attach 67 | 1 . . . . 19 6 1 . . . 3 . 4 . 5 2 . 1 1 12 1 6 5 Attach 48 | . . . . 1 12 6 2 . 1 2 4 . . . 4 3 . 1 3 5 . 2 2 Detach 10 | . . . . . 2 . . 1 . 2 1 . 1 . . . . 1 1 1 . . . Swap 46 | 3 5 . . 4 9 5 . 1 1 1 1 . 1 . 2 8 . . 2 2 . . 1 Drop 79 | 2 2 . 1 1 19 29 . . 1 . 5 . 4 . 3 4 . . . 5 . 2 1 Fire 179 | 8 29 6 . 28 78 . . . . 3 . . . . . 14 . . 5 . . 8 . Melee 244 | . . . . . 60 31 2 . 10 6 22 . 1 6 22 38 9 3 12 17 . 5 . Ram . | . . . . . . . . . . . . . . . . . . . . . . . . Kick . | . . . . . . . . . . . . . . . . . . . . . . . . Crush . | . . . . . . . . . . . . . . . . . . . . . . . . Escape Stasis 77 | . . . . . . . . . . . . . . . . 73 . . 1 . . . 3 Rewire 100 | . . . . . . . . . . . 7 . . . . 93 . . . . . . . Trap . | . . . . . . . . . . . . . . . . . . . . . . . . Miscellaneous . | . . . . . . . . . . . . . . . . . . . . . . . . Route ------- -11/Scrapyard -10/Materials (discovered 4 exits: [*Mat x3] / [*Min]) -10/Mines (discovered 3 exits: [*Mat x2] / *Exi) -10/Exiles -9/Mines -8/Materials (discovered 2 exits: *Fac x2) -7/Factory (discovered 5 exits: *Fac x2 / Sto / *Low x2) -7/Lower Caves -7/Lower Caves (discovered 2 exits: *Fac / *Dat) -7/Data Miner -6/Proximity Caves -6/Factory (discovered 6 exits: Fac x4 / *Low x2) -6/Lower Caves -6/Zion -5/Proximity Caves -5/Factory (discovered 3 exits: Fac / Upp / *Ext) -5/Extension (discovered 2 exits: *Fac / *Cet) -5/Cetus -5/Archives (discovered 3 exits: *Fac / *Hub x2) -5/Hub_04(d) (discovered 3 exits: *Fac x3) -4/Factory (discovered 2 exits: *Upp x2) -4/Upper Caves -4/Upper Caves -4/Zhirov (discovered 1 exit: [*Pro]) History --------- Turn | Location | Event 1 | -11/Scrapyard | Discovered new exit (range 2) 95 | -11/Scrapyard | Entered Materials 274 | -10/Materials | Discovered new exit (range 13) 334 | -10/Materials | Build established: Mutant 351 | -10/Materials | Discovered new exit (range 10) 402 | -10/Materials | Discovered new exit (range 4) 530 | -10/Materials | Discovered new exit (range 3) 595 | -10/Materials | Derelicts attacked the area 959 | -10/Materials | Entered Mines 1006 | -10/Mines | Discovered new exit (range 14) 1217 | -10/Mines | Discovered new exit (range 8) 1278 | -10/Mines | Learned Materials terminal intel 1504 | -10/Mines | Deemed a non-threat by the Exiles lab entrance 1505 | -10/Mines | Discovered new exit (range 5) 1561 | -10/Mines | Learned location of Storage (-7) 1750 | -10/Mines | Assisted by bots powering up and referring to "LRC-V3" 1944 | -10/Mines | Entered Exiles 1944 | -10/Exiles | Accompanied by 3 allies 1984 | -10/Exiles | Met 8R-AWN 2012 | -10/Exiles | Met EX-HEX 2060 | -10/Exiles | Met EX-BIN 2079 | -10/Exiles | Aligned with FarCom system 2080 | -10/Exiles | Given EX-Vault access code 2117 | -10/Exiles | Opened EX-Vault 2137 | -10/Exiles | Found Trap Reconfigurator 2173 | -10/Exiles | Warned to stay clear of 0b10 Research branches 2224 | -10/Exiles | Learned location of Zion (-6) 2274 | -10/Exiles | Discovered new exit (range 10) 2287 | -10/Exiles | Left Exiles lab with Trap Reconfigurator 2287 | -10/Exiles | Entered Mines 2287 | -9/Mines | Accompanied by 3 allies 2448 | -9/Mines | Assembled infested the area 2497 | -9/Mines | Lost 3 allies 2757 | -9/Mines | Discovered new exit (range 15) 2784 | -9/Mines | Entered Materials 2784 | -8/Materials | Evolved 4 slots: Propulsion x2, Utility x2 2785 | -8/Materials | Loaded intel: 11 terminal locations 3288 | -8/Materials | Lost 4 parts (1p1n1u1w) 3964 | -8/Materials | Garrison activated, responded to threat 4000 | -8/Materials | Lost 4 parts (2n1u1w) 4185 | -8/Materials | Discovered new exit (range 13) 4410 | -8/Materials | Build established: Scavenger-Mutant 4665 | -8/Materials | Core integrity fell below 50% 5573 | -8/Materials | Discovered new exit (range 10) 5584 | -8/Materials | First assault squad dispatched 5614 | -8/Materials | Entered Factory 5614 | -7/Factory | Evolved 2 slots: Propulsion x1, Utility x1 6008 | -7/Factory | Fabricated O-24 Administrator (x1) 6019 | -7/Factory | Discovered new exit (range 14) 6128 | -7/Factory | Build established: Hacker-Sprinter 6170 | -7/Factory | Discovered new exit (range 9) 6263 | -7/Factory | Discovered new exit (range 5) 6414 | -7/Factory | Identified exit to Storage 6414 | -7/Factory | Identified exit to Lower Caves 6453 | -7/Factory | Entered Lower Caves 6491 | -7/Lower Caves | Spotted B-75 Beast 6511 | -7/Lower Caves | Ambushed by research squad 6511 | -7/Lower Caves | Found Alien Artifact 6511 | -7/Lower Caves | Identified Dimensional Node Initializer 6511 | -7/Lower Caves | Initialized slip node 6532 | -7/Lower Caves | Discovered new exit (range 6) 6533 | -7/Lower Caves | Entered another Lower Caves area 6534 | -7/Lower Caves | Discovered new exit (range 9) 6624 | -7/Lower Caves | Encountered a Warlord checkpoint 6626 | -7/Lower Caves | Discovered new exit (range 7) 6628 | -7/Lower Caves | Entered Data Miner 6628 | -7/Data Miner | Discovered new exit (range 6) 6633 | -7/Data Miner | Met Data Miner 6637 | -7/Data Miner | Learned location of Section 7 (-2) 6637 | -7/Data Miner | Acquired the access code to Warlord's prototype stash 6641 | -7/Data Miner | Received God Mode back door access code from Data Miner 6644 | -7/Data Miner | Destroyed Data Miner 6647 | -7/Data Miner | Found Prototype Hackware 6648 | -7/Data Miner | Interfaced with the Data Conduit 6651 | -7/Data Miner | Found Prototype Hackware 6689 | -7/Data Miner | Entered Proximity Caves 6737 | -6/Proximity Caves | Spotted B-75 Beast 6774 | -6/Proximity Caves | Attracted the attention of an 0b10 outpost 6797 | -6/Proximity Caves | Discovered new exit (range 5) 6801 | -6/Proximity Caves | Learned 12 Factory zone layouts 6804 | -6/Proximity Caves | Build established: Sprinter 6805 | -6/Proximity Caves | Entered Factory 6805 | -6/Factory | Evolved 2 slots: Utility x2 6805 | -6/Factory | Identified System Mapper 6806 | -6/Factory | Identified exit to Factory 6806 | -6/Factory | Identified Quantum Router 6807 | -6/Factory | Loaded intel: 287 machine locations 6868 | -6/Factory | Fabricated O-24 Administrator (x1) 6903 | -6/Factory | Identified exit to Lower Caves 7107 | -6/Factory | Build established: Hacker-Sprinter 7224 | -6/Factory | Entered Lower Caves 7246 | -6/Lower Caves | Encountered a Warlord checkpoint 7246 | -6/Lower Caves | Learned Factory trap positions 7247 | -6/Lower Caves | A Derelict revealed a hidden shortcut to a safe place 7247 | -6/Lower Caves | Learned Factory stockpile data 7250 | -6/Lower Caves | Entered Zion 7285 | -6/Zion | Discovered new exit (range 18) 7310 | -6/Zion | Learned Factory recycling unit intel 7335 | -6/Zion | Found Prototype Device 7335 | -6/Zion | Identified Phasing AFG 7367 | -6/Zion | Given the Hacking Drone Bay 7423 | -6/Zion | Learned 4 Factory zone layouts 7499 | -6/Zion | Rebuked by Imprinter 7543 | -6/Zion | Entered Proximity Caves 7557 | -5/Proximity Caves | Spotter reported a threat 7570 | -5/Proximity Caves | Learned location of 1 exit from Factory 7600 | -5/Proximity Caves | Learned Factory emergency access door positions 7605 | -5/Proximity Caves | Discovered exit to Factory (range 9) 7609 | -5/Proximity Caves | Entered Factory 7609 | -5/Factory | Evolved 2 slots: Utility x2 7610 | -5/Factory | Identified exit to Upper Caves 7611 | -5/Factory | Identified exit to Factory 7613 | -5/Factory | Loaded intel: 76 trap records 7616 | -5/Factory | Loaded intel: 297 machine locations 7617 | -5/Factory | Loaded intel: 6 recycling unit locations 7786 | -5/Factory | Repaired Imp. VTOL Module 7818 | -5/Factory | Repaired Imp. VTOL Module 7849 | -5/Factory | Repaired Imp. VTOL Module 7886 | -5/Factory | Repaired Cld. Deuterium Engine 7908 | -5/Factory | Build established: Hacker-Scout 7918 | -5/Factory | Repaired Imp. VTOL Module 8051 | -5/Factory | Discovered new exit (range 9) 8135 | -5/Factory | Entered Extension 8136 | -5/Extension | Loaded intel: 35 machine locations 8161 | -5/Extension | Rescued a captive Derelict 8279 | -5/Extension | Rescued a captive Derelict 8279 | -5/Extension | Rescued a captive Derelict 8341 | -5/Extension | Rescued a captive Derelict 8348 | -5/Extension | Rescued a captive Derelict 8374 | -5/Extension | Rescued a captive Derelict 8574 | -5/Extension | Lost 3 parts (1p1n1u) 8680 | -5/Extension | Lost 3 allies 8694 | -5/Extension | Rescued a captive Derelict 8696 | -5/Extension | Rescued a captive Derelict 8753 | -5/Extension | Rescued A7 8766 | -5/Extension | Lost 4 allies 8792 | -5/Extension | Rescued a captive Derelict 8856 | -5/Extension | Discovered exit to Factory (range 10) 8856 | -5/Extension | Discovered new exit (range 6) 8891 | -5/Extension | Entered Cetus 8891 | -5/Cetus | Accompanied by 7 allies (A7) 8892 | -5/Cetus | Loaded intel: 24 machine locations 8896 | -5/Cetus | Acquired a Cetus Manufacturing Module code from A7 8901 | -5/Cetus | Spotted Cetus Guard 8901 | -5/Cetus | Spotted Cetus Guard 8901 | -5/Cetus | Spotted Cetus Guard 8903 | -5/Cetus | Spotted Cetus Guard 8924 | -5/Cetus | Allies destroyed Cetus Guard 8932 | -5/Cetus | Destroyed Cetus Guard 8935 | -5/Cetus | Destroyed Cetus Guard 8949 | -5/Cetus | Started Cetus Manufacturing Module 8963 | -5/Cetus | Lost 6 allies 8974 | -5/Cetus | Manufactured an Enhanced Grunt 8999 | -5/Cetus | Manufactured an Enhanced Grunt 9024 | -5/Cetus | Manufactured an Enhanced Grunt 9049 | -5/Cetus | Manufactured an Enhanced Grunt 9074 | -5/Cetus | Manufactured an Enhanced Grunt 9094 | -5/Cetus | Found a strange terminal 9100 | -5/Cetus | Discovered new exit (range 22) 9132 | -5/Cetus | Entered Archives 9132 | -5/Archives | Accompanied by 6 allies (A7) 9133 | -5/Archives | Loaded intel: 8 machine locations 9176 | -5/Archives | Discovered new exit (range 22) 9498 | -5/Archives | Build established: Hacker-Sprinter 10300 | -5/Archives | Discovered exit to Factory (range 19) 10301 | -5/Archives | Discovered new exit (range 13) 10321 | -5/Archives | Entered Hub_04(d) 10321 | -5/Hub_04(d) | Accompanied by 5 allies 10322 | -5/Hub_04(d) | Loaded intel: 98 machine locations 10347 | -5/Hub_04(d) | Discovered exit to Factory (range 13) 10378 | -5/Hub_04(d) | Discovered exit to Factory (range 7) 10382 | -5/Hub_04(d) | Crushed by falling debris 10424 | -5/Hub_04(d) | Lost 3 parts (1p1n1u) 10470 | -5/Hub_04(d) | Network Hub disabled 10471 | -5/Hub_04(d) | Core integrity fell below 50% 10472 | -5/Hub_04(d) | Spotted Lightning 10472 | -5/Hub_04(d) | Spotted Lightning 10473 | -5/Hub_04(d) | Spotted Lightning 10477 | -5/Hub_04(d) | Core integrity fell below 20% 10477 | -5/Hub_04(d) | Discovered exit to Factory (range 19) 10481 | -5/Hub_04(d) | System corruption reached 10% 10491 | -5/Hub_04(d) | Entered Factory 10491 | -4/Factory | Evolved 2 slots: Propulsion x1, Utility x1 10492 | -4/Factory | Loaded intel: 273 machine locations 10505 | -4/Factory | Lost 8 parts (1p3n3u1w) 10697 | -4/Factory | Found Exp. Terrain Scan Processor 10754 | -4/Factory | Fabricated Gravity Neutralizer? 10762 | -4/Factory | Found Centrium Greatsword 10771 | -4/Factory | Identified exit to Upper Caves 10784 | -4/Factory | First assault squad dispatched 10896 | -4/Factory | Lost 4 parts (3u1w) 10913 | -4/Factory | Core integrity fell below 50% 10914 | -4/Factory | Entered Upper Caves 10952 | -4/Upper Caves | Learned Research garrison access intel 10992 | -4/Upper Caves | Discovered new exit (range 8) 10996 | -4/Upper Caves | Identified exit to Upper Caves 10997 | -4/Upper Caves | Entered another Upper Caves area 11071 | -4/Upper Caves | Core integrity fell below 20% 11146 | -4/Upper Caves | Build established: Mutant 11232 | -4/Upper Caves | Discovered new exit (range 10) 11237 | -4/Upper Caves | Identified exit to Zhirov 11237 | -4/Upper Caves | Entered Zhirov 11237 | -4/Zhirov | Discovered new exit (range 3) 11248 | -4/Zhirov | Met Zhirov 11262 | -4/Zhirov | Found Alien Artifact 11262 | -4/Zhirov | Identified Integrated Dissipator 11262 | -4/Zhirov | Installed Integrated Dissipator, increased core heat dissipation (+20) 11286 | -4/Zhirov | Found Alien Artifact 11286 | -4/Zhirov | Identified Transdimensional Reconstructor 11286 | -4/Zhirov | Warped through subspace 11311 | -4/Zhirov | Zhirov requested help retrieving the SGEMP Prototype 11439 | -4/Zhirov | Attacked by Zhirov 11442 | -4/Zhirov | Destroyed by Svarog with Nova Cannon Last Messages --------------- return I'll help you make your way to the surface. 11314_ Zhirov uses his terminal. 11351_ 2E,,0NSJR1XU%UAEF>E8 11353_ Zhirov uses his terminal. 11356_ Imp. System Restoration Module purges 1% system corruption (6%). 11366_ System corrupted: Heat flow error (+244). 11372_ Imp. System Restoration Module purges 1% system corruption (5%). 11372_ Zhirov uses his terminal. 11391_ System corrupted: IFF burst signal emitted. 11396_ Zhirov uses his terminal. 11426_ Imp. System Restoration Module purges 1% system corruption (4%). 11439_ System corrupted: FCS attempts to trigger Adv. Plasma Cannon. 11439_ System corrupted: Adv. Plasma Cannon misfires. 11439_ Zhirov: "We're under attack!" 11439_ Held in stasis. 11440_ Adv. Plasma Cannon destroyed. 11440_ VTOL Module destroyed. 11440_ Zhirov's Workstation disabled. 11442_ Held in stasis. 11442_ Machine disabled. Map ----- +----------------------------------------------------+ | | | | | | | | | | | | | | | ?????????????????????????????????????????? | | ?????????????????????????????????????????? | | ?????????????????????????????????????????? | | ?????????????????????????????????????????? | | ?????????????????????????????????????????? | | ?????????????????????????????????????????? | | ?????????????????????????????????????????? | | ?????????????????????????????????????????? | | ?????????????????????????????????????????? | | ???????????????????????????#""#??????????? | | ??????????????????????????##""##?????????? | | ????????????????????###??##""""##????????? | | ????????????#########P##?#""""""#??????### | | ????????????#""""""" #?# """" #?????## | | ????#######?#" " ### ##?#### < | | ????#"X"X"#?#" 1 ### | | ????#X X#?# | | ????#" "#### | | ????#"" @ ###### | | ????#####+#### ### ##????#### | | ????????# #?#" S #?# """" #????????? | | ????????# #?##" #### ##?#""""""#????????? | | ????????+ #??#" #??###??##""""##????????? | | ????????###??## #????????##""##?????????? | | ??????????????# #?????????#""#??????????? | | ??????????????# #???????????????????????? | | ???????######## ########????????????????? | | ???????#"X # # """"#????????????????? | | ???????#" # # """"#????????????????? | | ???????#"" # # """#????????????????? | | ???????#"" + + !""#????????????????? | | ???????#"" ""# # """#????????????????? | | ???????#"""""# # """"#????????????????? | | ???????#"""""# #X""""#????????????????? | | ???????########++########????????????????? | | ???????#" """"#????????????????? | | ???????#"" "#????????????????? | | ???????#" " " " "* "#????????????????? | | ???????# " " " !" "#????????????????? | | ???????# " " "!!" "#????????????????? | | ???????##################????????????????? | | ?????????????????????????????????????????? | | ?????????????????????????????????????????? | +----------------------------------------------------+ Best States ------------- Heat Dissipation 63 Energy Generation 35 Energy Capacity 315 Matter Stores 300 Matter Capacity 300 Sight Range 22 Terrain Scan Density 10 Additional Mass Support 9 Corruption Containment 12 Armor Coverage 450 Evasion (%) 75 Melee Accuracy 32 Core Analysis 6 Recoil Reduction 4 Offensive Hacking 30 Defensive Hacking 25 Item Schematics ----------------- Lrg. Storage Unit | -10/Materials | Hacked Combat Drone Bay | -7/Data Miner | Free Lgt. Regenerative Plating | -7/Data Miner | Free Cld. Cesium-ion Thruster | -7/Data Miner | Free Gravity Neutralizer | -7/Data Miner | Free Gui. EMP Blaster | -7/Data Miner | Free Antigrav System | -7/Data Miner | Free Imp. Thermal Shield | -7/Data Miner | Free Lance | -7/Data Miner | Free Mass Driver | -7/Data Miner | Free Adv. Datajack | -7/Data Miner | Free Adv. Target Analyzer | -7/Data Miner | Free Cld. VTOL Module | -6/Factory | Hacked Riot Gun | -6/Zion | Free Hvy. Riot Gun | -6/Zion | Free Battle Rifle | -6/Zion | Free Bore Cannon | -6/Zion | Free Ripper | -6/Zion | Free Phasing Sabre | -6/Zion | Free Imp. Plasma Cutter | -6/Zion | Archive Imp. Trap Scanner | -6/Zion | Archive Adv. Signal Interpreter | -6/Zion | Archive Field Propulsion Drive | -6/Zion | Archive Adv. Thermal Shield | -6/Zion | Archive Beamcaster | -6/Zion | Archive Adv. Shield Generator | -6/Zion | Archive Energy Well | -6/Zion | Archive Imp. Shock Absorption System | -6/Zion | Archive Coil Gun | -6/Zion | Archive Imp. Corruption Screen | -6/Zion | Archive Cloaking Device | -6/Zion | Archive Adv. Transmission Jammer | -6/Zion | Archive Assault Drone Bay | -4/Zhirov | Free Exp. Heat Sink | -4/Zhirov | Free Exp. Optical Array | -4/Zhirov | Free Imp. Arc Thrower | -4/Zhirov | Free Robot Schematics ------------------ G-47 Trooper | -7/Data Miner | Free H-66 Slayer | -7/Data Miner | Free M-14 Sweeper | -7/Data Miner | Free A-15 Conveyor | -7/Data Miner | Free B-48 Gladiator | -7/Data Miner | Free S-27 Virus | -7/Data Miner | Free G-50 Soldier | -7/Data Miner | Free X-67 Chaingunner | -6/Zion | Archive D-83 Annihilator | -6/Zion | Archive Fabricated ------------ O-24 Administrator | x1 | -7/Factory | Preloaded O-24 Administrator | x1 | -6/Factory | Preloaded Gravity Neutralizer | x1 | -4/Factory Alien Tech Used ----------------- Dimensional Node Initializer Integrated Dissipator Transdimensional Reconstructor Achievements -------------- Brute Force Dodgeball, But With Guns Subspace Traveler Unlimited Data Challenges ------------ None Game ------ Seed MatterWeldingInterrupter Manual? 0 Play Time 03:48:12 Cumulative 94.7 hours Start 2024.04.28 @ 11:07:19 End 2024.04.28 @ 21:05:18 Sessions 5 Manual Loads 0 Difficulty Rogue Special Mode None Game No. 105 Rogue 105 Adventurer 0 Explorer 0 Win Type - Total 2 Types 2/0/0/0/0/0/0/0/0 Lore% 44 Gallery% 46 Achievement% 42 Wizard Run 0 Options --------- Layout 0 ASCII 0 Keyboard 0 Movement Mouse Keybinds 0 Fullscreen 2 Font 18/X11Bold Map View 76x50 Zoom Use 0% Tactical HUD 1 Map Filters NONE Filters NONE Steam 1 RUN: b23058d2-881e-4093-b4ac-7c4d4d4481a6